[Event "FIDE World Rapid Chess Championship 2021"]
[White "Petrosyan, Manuel"]
[Black "Harikrishna, Pentala"]
[WhiteFideId "13300857"]
[BlackFideId "5007003"]
[WhiteElo "2514"]
[BlackElo "2705"]
[Result "1-0"]
[Round "05"]
[TimeControl "900+10"]
[Date "2021.12.26"]
[WhiteClock "0:00:38"]
[BlackClock "0:00:18"]

1. d4 {[%clk 0:00:22]}  Nf6 {[%clk 0:04:48]} 2. Nf3 {[%clk 0:00:22]}  d5 {[%clk 0:04:48]} 3. c4 {[%clk 0:00:22]}  e6 {[%clk 0:04:48]} 4. Nc3 {[%clk 0:00:22]}  Nbd7 {[%clk 0:04:48]} 5. Bf4 {[%clk 0:00:22]}  dxc4 {[%clk 0:04:48]} 6. e3 {[%clk 0:00:22]}  Nb6 {[%clk 0:04:48]} 7. Bxc4 {[%clk 0:00:22]}  Nxc4 {[%clk 0:04:48]} 8. Qa4+ {[%clk 0:00:22]}  Bd7 {[%clk 0:04:48]} 9. Qxc4 {[%clk 0:00:22]}  Bd6 {[%clk 0:04:48]} 10. Ne5 {[%clk 0:00:22]}  O-O {[%clk 0:04:48]} 11. O-O {[%clk 0:00:22]}  h6 {[%clk 0:04:48]} 12. Rac1 {[%clk 0:00:22]}  a6 {[%clk 0:04:48]} 13. Rfd1 {[%clk 0:00:22]}  Qe7 {[%clk 0:04:48]} 14. Nxd7 {[%clk 0:00:22]}  Qxd7 {[%clk 0:04:48]} 15. Be5 {[%clk 0:00:22]}  Qe7 {[%clk 0:04:48]} 16. Bxf6 {[%clk 0:00:22]}  Qxf6 {[%clk 0:04:48]} 17. Ne4 {[%clk 0:00:22]}  Bxh2+ {[%clk 0:04:48]} 18. Kxh2 {[%clk 0:00:22]}  Qh4+ {[%clk 0:04:48]} 19. Kg1 {[%clk 0:00:22]}  Qxe4 {[%clk 0:04:48]} 20. Qxc7 {[%clk 0:00:22]}  h5 {[%clk 0:04:48]} 21. Rc5 {[%clk 0:00:22]}  h4 {[%clk 0:04:48]} 22. Qe5 {[%clk 0:00:22]}  Qxe5 {[%clk 0:04:48]} 23. Rxe5 {[%clk 0:00:22]}  Rac8 {[%clk 0:04:48]} 24. Rc5 {[%clk 0:00:22]}  b6 {[%clk 0:04:48]} 25. Rcc1 {[%clk 0:00:22]}  g5 {[%clk 0:04:48]} 26. Kh2 {[%clk 0:00:22]}  Kg7 {[%clk 0:04:48]} 27. g3 {[%clk 0:00:22]}  Rh8 {[%clk 0:04:48]} 28. gxh4 {[%clk 0:00:22]}  Rxh4+ {[%clk 0:04:48]} 29. Kg2 {[%clk 0:00:22]}  Rch8 {[%clk 0:04:48]} 30. Rc6 {[%clk 0:00:22]}  Rh2+ {[%clk 0:04:48]} 31. Kf3 {[%clk 0:00:22]}  g4+ {[%clk 0:04:48]} 32. Kxg4 {[%clk 0:00:22]}  Rxf2 {[%clk 0:04:48]} 33. Rxb6 {[%clk 0:00:22]}  Rh6 {[%clk 0:04:48]} 34. d5 {[%clk 0:00:22]}  Rg6+ {[%clk 0:02:10]} 35. Kh3 {[%clk 0:00:31]}  Rf3+ {[%clk 0:02:10]} 36. Kh4 {[%clk 0:00:31]}  Rf2 {[%clk 0:02:10]} 37. Kh3 {[%clk 0:00:31]}  Rf3+ {[%clk 0:02:10]} 38. Kh4 {[%clk 0:00:31]}  Kh6 {[%clk 0:02:10]} 39. Rb4 {[%clk 0:00:31]}  e5 {[%clk 0:02:10]} 40. d6 {[%clk 0:00:31]}  Rf2 {[%clk 0:02:10]} 41. Rg4 {[%clk 0:00:38]}  Rh2+ {[%clk 0:00:18]} 42. Kg3 {[%clk 0:00:38]}  Rg2+ {[%clk 0:00:18]} 43. Kxg2 {[%clk 0:00:38]}  Rxg4+ {[%clk 0:00:18]} 44. Kf3 {[%clk 0:00:38]} 1-0


[Site "http://www.Chess.com"]

[Event "FIDE World Rapid Chess Championship 2021"]
[White "Kovalev, Vladislav"]
[Black "Kantor, Gergely"]
[WhiteFideId "13504398"]
[BlackFideId "751499"]
[WhiteElo "2647"]
[BlackElo "2454"]
[Result "1/2-1/2"]
[Round "05"]
[TimeControl "900+10"]
[Date "2021.12.26"]
[WhiteClock "0:00:00"]
[BlackClock "0:11:19"]

1. e4 {[%clk 0:00:00]}  e5 {[%clk 0:11:19]} 2. Nf3 {[%clk 0:00:00]}  Nc6 {[%clk 0:11:19]} 3. Nc3 {[%clk 0:00:00]}  Nf6 {[%clk 0:11:19]} 4. d4 {[%clk 0:00:00]}  exd4 {[%clk 0:11:19]} 5. Nxd4 {[%clk 0:00:00]}  Bb4 {[%clk 0:11:19]} 6. Nxc6 {[%clk 0:00:00]}  bxc6 {[%clk 0:11:19]} 7. Bd3 {[%clk 0:00:00]}  O-O {[%clk 0:11:19]} 8. O-O {[%clk 0:00:00]}  d5 {[%clk 0:11:19]} 9. exd5 {[%clk 0:00:00]}  cxd5 {[%clk 0:11:19]} 10. h3 {[%clk 0:00:00]}  c6 {[%clk 0:11:19]} 11. Qf3 {[%clk 0:00:00]}  Bd6 {[%clk 0:11:19]} 12. Bf4 {[%clk 0:00:00]}  Rb8 {[%clk 0:11:19]} 13. b3 {[%clk 0:00:00]}  Rb4 {[%clk 0:11:19]} 14. Ne2 {[%clk 0:00:00]}  Re8 {[%clk 0:11:19]} 15. c4 {[%clk 0:00:00]}  Bxf4 {[%clk 0:11:19]} 16. Nxf4 {[%clk 0:00:00]}  Ba6 {[%clk 0:11:19]} 17. Rfd1 {[%clk 0:00:00]}  Qc7 {[%clk 0:11:19]} 18. Rac1 {[%clk 0:00:00]}  dxc4 {[%clk 0:11:19]} 19. Bxc4 {[%clk 0:00:00]}  Bxc4 {[%clk 0:11:19]} 20. Rxc4 {[%clk 0:00:00]}  Rxc4 {[%clk 0:11:19]} 21. bxc4 {[%clk 0:00:00]}  Qe5 {[%clk 0:11:19]} 22. g3 {[%clk 0:00:00]}  Qc5 {[%clk 0:11:19]} 1/2-1/2


[Site "http://www.Chess.com"]

[Event "FIDE World Rapid Chess Championship 2021"]
[White "Antipov, Mikhail Al."]
[Black "Costachi, Mihnea"]
[WhiteFideId "4107012"]
[BlackFideId "1217518"]
[WhiteElo "2644"]
[BlackElo "2443"]
[Result "1/2-1/2"]
[Round "05"]
[TimeControl "900+10"]
[Date "2021.12.26"]
[WhiteClock "0:00:15"]
[BlackClock "0:00:28"]

1. e4 {[%clk 0:03:02]}  e5 {[%clk 0:01:04]} 2. Nf3 {[%clk 0:03:02]}  Nc6 {[%clk 0:01:04]} 3. Bc4 {[%clk 0:03:02]}  Bc5 {[%clk 0:01:04]} 4. d3 {[%clk 0:03:02]}  Nf6 {[%clk 0:01:04]} 5. O-O {[%clk 0:03:02]}  h6 {[%clk 0:01:04]} 6. c3 {[%clk 0:03:02]}  d6 {[%clk 0:01:04]} 7. Re1 {[%clk 0:03:02]}  O-O {[%clk 0:01:04]} 8. Nbd2 {[%clk 0:03:02]}  a6 {[%clk 0:01:04]} 9. a4 {[%clk 0:03:02]}  Ba7 {[%clk 0:01:04]} 10. h3 {[%clk 0:03:02]}  Be6 {[%clk 0:01:04]} 11. Bxe6 {[%clk 0:03:02]}  fxe6 {[%clk 0:01:04]} 12. b4 {[%clk 0:03:02]}  Nh5 {[%clk 0:01:04]} 13. Nf1 {[%clk 0:03:02]}  Nf4 {[%clk 0:01:04]} 14. Ra2 {[%clk 0:03:02]}  Qe8 {[%clk 0:01:04]} 15. Bxf4 {[%clk 0:03:02]}  Rxf4 {[%clk 0:01:04]} 16. g3 {[%clk 0:03:02]}  Qg6 {[%clk 0:01:04]} 17. Kg2 {[%clk 0:03:02]}  Raf8 {[%clk 0:01:04]} 18. N1h2 {[%clk 0:03:02]}  b5 {[%clk 0:01:04]} 19. axb5 {[%clk 0:03:02]}  axb5 {[%clk 0:01:04]} 20. Qa1 {[%clk 0:03:02]}  Bb6 {[%clk 0:01:04]} 21. Ra8 {[%clk 0:03:02]}  Nb8 {[%clk 0:01:04]} 22. Re2 {[%clk 0:03:02]}  Kh7 {[%clk 0:01:04]} 23. Rea2 {[%clk 0:03:02]}  R4f6 {[%clk 0:01:04]} 24. Qd1 {[%clk 0:03:02]}  R6f7 {[%clk 0:01:04]} 25. Qe2 {[%clk 0:03:02]}  Qh5 {[%clk 0:01:04]} 26. d4 {[%clk 0:03:02]}  exd4 {[%clk 0:01:04]} 27. cxd4 {[%clk 0:03:02]}  Nc6 {[%clk 0:01:04]} 28. Rxf8 {[%clk 0:03:02]}  Rxf8 {[%clk 0:01:04]} 29. d5 {[%clk 0:03:02]}  exd5 {[%clk 0:01:04]} 30. Qxb5 {[%clk 0:03:02]}  Ne7 {[%clk 0:01:04]} 31. Rd2 {[%clk 0:03:02]}  Qg6 {[%clk 0:01:04]} 32. exd5 {[%clk 0:03:02]}  Qe4 {[%clk 0:01:04]} 33. h4 {[%clk 0:03:02]}  Kh8 {[%clk 0:00:42]} 34. h5 {[%clk 0:01:04]}  Kh7 {[%clk 0:00:42]} 35. g4 {[%clk 0:01:04]}  Kh8 {[%clk 0:00:42]} 36. Qd3 {[%clk 0:01:04]}  Qxd3 {[%clk 0:00:42]} 37. Rxd3 {[%clk 0:01:04]}  Rf4 {[%clk 0:00:42]} 38. g5 {[%clk 0:01:04]}  hxg5 {[%clk 0:00:42]} 39. Nxg5 {[%clk 0:01:04]}  Rxf2+ {[%clk 0:00:42]} 40. Kg3 {[%clk 0:01:04]}  Nf5+ {[%clk 0:00:45]} 41. Kh3 {[%clk 0:00:09]}  Kg8 {[%clk 0:00:45]} 42. Nhf3 {[%clk 0:00:09]}  Kf8 {[%clk 0:00:45]} 43. Kg4 {[%clk 0:00:09]}  Ne3+ {[%clk 0:00:45]} 44. Kf4 {[%clk 0:00:09]}  Nc4 {[%clk 0:00:45]} 45. Kf5 {[%clk 0:00:09]}  Ne5 {[%clk 0:00:45]} 46. Ra3 {[%clk 0:00:09]}  Ke7 {[%clk 0:00:45]} 47. Kf4 {[%clk 0:00:09]}  Rf1 {[%clk 0:00:45]} 48. Ne4 {[%clk 0:00:09]}  Nc4 {[%clk 0:00:20]} 49. Rc3 {[%clk 0:00:08]}  Ne5 {[%clk 0:00:20]} 50. Kg3 {[%clk 0:00:08]}  Nd7 {[%clk 0:00:20]} 51. Ned2 {[%clk 0:00:08]}  Rh1 {[%clk 0:00:20]} 52. Kg4 {[%clk 0:00:08]}  Nf6+ {[%clk 0:00:20]} 53. Kf5 {[%clk 0:00:08]}  Nxd5 {[%clk 0:00:20]} 54. Rb3 {[%clk 0:00:08]}  Rxh5+ {[%clk 0:00:20]} 55. Kg6 {[%clk 0:00:08]}  Nf4+ {[%clk 0:00:20]} 56. Kxg7 {[%clk 0:00:08]}  Rh3 {[%clk 0:00:20]} 57. Ne4 {[%clk 0:00:08]}  Rh1 {[%clk 0:00:20]} 58. Ng3 {[%clk 0:00:34]}  Nh5+ {[%clk 0:00:17]} 59. Nxh5 {[%clk 0:00:34]}  Rxh5 {[%clk 0:00:17]} 60. Kg6 {[%clk 0:00:34]}  Rb5 {[%clk 0:00:17]} 61. Ng5 {[%clk 0:00:34]}  Kd7 {[%clk 0:00:17]} 62. Ne4 {[%clk 0:00:34]}  Bd4 {[%clk 0:00:17]} 63. Nd2 {[%clk 0:00:34]}  Kc6 {[%clk 0:00:17]} 64. Nf3 {[%clk 0:00:34]}  Be5 {[%clk 0:00:17]} 65. Kf5 {[%clk 0:00:34]}  Kd5 {[%clk 0:00:17]} 66. Nxe5 {[%clk 0:00:34]}  dxe5 {[%clk 0:00:17]} 67. Rd3+ {[%clk 0:00:34]}  Kc4 {[%clk 0:00:28]} 68. Rd7 {[%clk 0:00:15]}  c6 {[%clk 0:00:28]} 69. Rd6 {[%clk 0:00:15]}  Rb6 {[%clk 0:00:28]} 70. Kxe5 {[%clk 0:00:15]}  Kxb4 {[%clk 0:00:28]} 71. Rd1 {[%clk 0:00:15]}  Kc3 {[%clk 0:00:28]} 72. Rc1+ {[%clk 0:00:15]}  Kb4 {[%clk 0:00:28]} 73. Kd4 {[%clk 0:00:15]}  Ka3 {[%clk 0:00:28]} 74. Kc5 {[%clk 0:00:15]}  Rb8 {[%clk 0:00:28]} 75. Rh1 {[%clk 0:00:15]}  Rc8 {[%clk 0:00:28]} 76. Rh6 {[%clk 0:00:15]}  Kb3 {[%clk 0:00:28]} 77. Rxc6 {[%clk 0:00:15]}  Rxc6+ {[%clk 0:00:28]} 78. Kxc6 {[%clk 0:00:15]} 1/2-1/2


[Site "http://www.Chess.com"]

[Event "FIDE World Rapid Chess Championship 2021"]
[White "Sadhwani, Raunak"]
[Black "Howell, David W L"]
[WhiteFideId "35093487"]
[BlackFideId "410608"]
[WhiteElo "2454"]
[BlackElo "2624"]
[Result "1/2-1/2"]
[Round "05"]
[TimeControl "900+10"]
[Date "2021.12.26"]
[WhiteClock "0:01:16"]
[BlackClock "0:00:37"]

1. c4 {[%clk 0:04:22]}  c6 {[%clk 0:00:56]} 2. d4 {[%clk 0:04:22]}  d5 {[%clk 0:00:56]} 3. Nf3 {[%clk 0:04:22]}  Nf6 {[%clk 0:00:56]} 4. e3 {[%clk 0:04:22]}  a6 {[%clk 0:00:56]} 5. Nc3 {[%clk 0:04:22]}  Bf5 {[%clk 0:00:56]} 6. c5 {[%clk 0:04:22]}  Nbd7 {[%clk 0:00:56]} 7. Bd3 {[%clk 0:04:22]}  Bxd3 {[%clk 0:00:56]} 8. Qxd3 {[%clk 0:04:22]}  e5 {[%clk 0:00:56]} 9. Qc2 {[%clk 0:04:22]}  e4 {[%clk 0:00:56]} 10. Nd2 {[%clk 0:04:22]}  g6 {[%clk 0:00:56]} 11. Nb3 {[%clk 0:04:22]}  Bg7 {[%clk 0:00:56]} 12. Na4 {[%clk 0:04:22]}  O-O {[%clk 0:00:56]} 13. Bd2 {[%clk 0:04:22]}  Ng4 {[%clk 0:00:56]} 14. h3 {[%clk 0:04:22]}  Nh6 {[%clk 0:00:56]} 15. O-O-O {[%clk 0:04:22]}  Nf5 {[%clk 0:00:56]} 16. g3 {[%clk 0:04:22]}  Re8 {[%clk 0:00:56]} 17. Kb1 {[%clk 0:04:22]}  h5 {[%clk 0:00:56]} 18. Rdg1 {[%clk 0:04:22]}  Nf8 {[%clk 0:00:56]} 19. Nb6 {[%clk 0:04:22]}  Rb8 {[%clk 0:00:56]} 20. Qd1 {[%clk 0:04:22]}  Ne6 {[%clk 0:00:56]} 21. Be1 {[%clk 0:04:22]}  Ng5 {[%clk 0:00:56]} 22. Nd2 {[%clk 0:04:22]}  h4 {[%clk 0:00:56]} 23. gxh4 {[%clk 0:04:22]}  Nxh4 {[%clk 0:00:56]} 24. f4 {[%clk 0:04:22]}  Ngf3 {[%clk 0:00:56]} 25. Rg4 {[%clk 0:04:22]}  Nxd2+ {[%clk 0:00:56]} 26. Qxd2 {[%clk 0:04:22]}  Nf3 {[%clk 0:00:56]} 27. Qg2 {[%clk 0:04:22]}  Qe7 {[%clk 0:00:56]} 28. f5 {[%clk 0:04:22]}  Rbd8 {[%clk 0:00:56]} 29. h4 {[%clk 0:04:22]}  Bh6 {[%clk 0:00:56]} 30. Bf2 {[%clk 0:04:22]}  Kh7 {[%clk 0:00:56]} 31. fxg6+ {[%clk 0:04:22]}  fxg6 {[%clk 0:00:56]} 32. Rxg6 {[%clk 0:04:22]}  Rg8 {[%clk 0:00:56]} 33. h5 {[%clk 0:04:22]}  Qf7 {[%clk 0:00:56]} 34. Rh3 {[%clk 0:04:22]}  Rxg6 {[%clk 0:00:56]} 35. hxg6+ {[%clk 0:04:22]}  Qxg6 {[%clk 0:00:56]} 36. Bg3 {[%clk 0:04:22]}  Kg7 {[%clk 0:00:56]} 37. Be5+ {[%clk 0:04:22]}  Kf7 {[%clk 0:00:20]} 38. Rg3 {[%clk 0:03:51]}  Qf5 {[%clk 0:00:20]} 39. Rg7+ {[%clk 0:03:51]}  Bxg7 {[%clk 0:00:20]} 40. Qxg7+ {[%clk 0:03:51]}  Ke6 {[%clk 0:00:20]} 41. Qh6+ {[%clk 0:03:51]}  Kf7 {[%clk 0:00:20]} 42. Qg7+ {[%clk 0:03:51]}  Ke6 {[%clk 0:00:20]} 43. Qh6+ {[%clk 0:01:16]}  Kf7 {[%clk 0:00:37]} 44. Qg7+ {[%clk 0:01:16]} 1/2-1/2


[Site "http://www.Chess.com"]

[Event "FIDE World Rapid Chess Championship 2021"]
[White "Faizrakhmanov, Ramil"]
[Black "Dreev, Aleksey"]
[WhiteFideId "24103209"]
[BlackFideId "4100107"]
[WhiteElo "2461"]
[BlackElo "2621"]
[Result "0-1"]
[Round "05"]
[TimeControl "900+10"]
[Date "2021.12.26"]
[WhiteClock "0:00:16"]
[BlackClock "0:00:43"]

1. d4 {[%clk 0:01:41]}  Nf6 {[%clk 0:00:38]} 2. c4 {[%clk 0:01:41]}  e6 {[%clk 0:00:38]} 3. Nf3 {[%clk 0:01:41]}  d5 {[%clk 0:00:38]} 4. Nc3 {[%clk 0:01:41]}  Nbd7 {[%clk 0:00:38]} 5. Bf4 {[%clk 0:01:41]}  dxc4 {[%clk 0:00:38]} 6. e3 {[%clk 0:01:41]}  Bd6 {[%clk 0:00:38]} 7. Bxd6 {[%clk 0:01:41]}  cxd6 {[%clk 0:00:38]} 8. Bxc4 {[%clk 0:01:41]}  O-O {[%clk 0:00:38]} 9. O-O {[%clk 0:01:41]}  Nb6 {[%clk 0:00:38]} 10. Be2 {[%clk 0:01:41]}  Bd7 {[%clk 0:00:38]} 11. a4 {[%clk 0:01:41]}  Bc6 {[%clk 0:00:38]} 12. Qb3 {[%clk 0:01:41]}  a6 {[%clk 0:00:38]} 13. h3 {[%clk 0:01:41]}  Nbd5 {[%clk 0:00:38]} 14. Nd2 {[%clk 0:01:41]}  Rc8 {[%clk 0:00:38]} 15. Rfc1 {[%clk 0:01:41]}  Nxc3 {[%clk 0:00:38]} 16. Rxc3 {[%clk 0:01:41]}  Qa5 {[%clk 0:00:38]} 17. Bf3 {[%clk 0:01:41]}  Bxf3 {[%clk 0:00:38]} 18. Nxf3 {[%clk 0:01:41]}  Qd5 {[%clk 0:00:38]} 19. Ra3 {[%clk 0:01:41]}  Ne4 {[%clk 0:00:38]} 20. Qxd5 {[%clk 0:01:41]}  exd5 {[%clk 0:00:38]} 21. Rxc8 {[%clk 0:01:41]}  Rxc8 {[%clk 0:00:38]} 22. Ne1 {[%clk 0:01:41]}  Rc1 {[%clk 0:00:38]} 23. Kf1 {[%clk 0:01:41]}  Rb1 {[%clk 0:00:38]} 24. Ra2 {[%clk 0:01:41]}  Rd1 {[%clk 0:00:38]} 25. f3 {[%clk 0:01:41]}  Ng3+ {[%clk 0:00:38]} 26. Kf2 {[%clk 0:01:41]}  Nf5 {[%clk 0:00:38]} 27. Ke2 {[%clk 0:01:41]}  Rb1 {[%clk 0:00:38]} 28. Nd3 {[%clk 0:01:41]}  Ng3+ {[%clk 0:00:38]} 29. Kf2 {[%clk 0:00:30]}  Nh1+ {[%clk 0:01:03]} 30. Ke2 {[%clk 0:00:30]}  h5 {[%clk 0:01:03]} 31. Nf4 {[%clk 0:00:30]}  Ng3+ {[%clk 0:01:03]} 32. Kd2 {[%clk 0:00:30]}  g5 {[%clk 0:01:03]} 33. Nxd5 {[%clk 0:00:30]}  Rg1 {[%clk 0:01:03]} 34. Ra3 {[%clk 0:00:30]}  Rxg2+ {[%clk 0:01:03]} 35. Kc1 {[%clk 0:00:30]}  Rf2 {[%clk 0:01:03]} 36. e4 {[%clk 0:00:30]}  Ne2+ {[%clk 0:01:03]} 37. Kd2 {[%clk 0:00:30]}  Ng1+ {[%clk 0:01:03]} 38. Ke1 {[%clk 0:00:30]}  Rxf3 {[%clk 0:01:03]} 39. Rc3 {[%clk 0:00:30]}  Rxc3 {[%clk 0:01:03]} 40. bxc3 {[%clk 0:00:30]}  Kg7 {[%clk 0:01:03]} 41. Ne7 {[%clk 0:00:30]}  Kf6 {[%clk 0:01:03]} 42. Nf5 {[%clk 0:00:30]}  Ke6 {[%clk 0:01:05]} 43. Ng7+ {[%clk 0:00:22]}  Ke7 {[%clk 0:01:05]} 44. Nxh5 {[%clk 0:00:22]}  Nxh3 {[%clk 0:01:05]} 45. a5 {[%clk 0:00:22]}  g4 {[%clk 0:01:05]} 46. Ke2 {[%clk 0:00:22]}  Ng1+ {[%clk 0:01:05]} 47. Ke3 {[%clk 0:00:22]}  Nf3 {[%clk 0:01:05]} 48. Ng3 {[%clk 0:00:22]}  Ke6 {[%clk 0:01:05]} 49. c4 {[%clk 0:00:22]}  Ne1 {[%clk 0:01:05]} 50. Kd2 {[%clk 0:00:16]}  Ng2 {[%clk 0:00:43]} 51. Ke2 {[%clk 0:00:16]}  Nh4 {[%clk 0:00:43]} 52. Ke3 {[%clk 0:00:16]}  f5 {[%clk 0:00:43]} 53. Kf4 {[%clk 0:00:16]}  Ng2+ {[%clk 0:00:43]} 54. Kg5 {[%clk 0:00:16]}  f4 {[%clk 0:00:43]} 55. Nh5 {[%clk 0:00:16]}  f3 {[%clk 0:00:43]} 56. Ng3 {[%clk 0:00:16]}  f2 {[%clk 0:00:43]} 57. Nf1 {[%clk 0:00:16]}  Ne3 {[%clk 0:00:43]} 58. Nxe3 {[%clk 0:00:16]}  g3 {[%clk 0:00:43]} 59. d5+ {[%clk 0:00:16]}  Kd7 {[%clk 0:00:43]} 0-1


[Site "http://www.Chess.com"]

[Event "FIDE World Rapid Chess Championship 2021"]
[White "Vastrukhin, Oleg"]
[Black "Amin, Bassem"]
[WhiteFideId "4192770"]
[BlackFideId "10601457"]
[WhiteElo "2382"]
[BlackElo "2614"]
[Result "0-1"]
[Round "05"]
[TimeControl "900+10"]
[Date "2021.12.26"]
[WhiteClock "0:00:33"]
[BlackClock "0:03:34"]

1. Nf3 {[%clk 0:00:33]}  Nf6 {[%clk 0:03:34]} 2. g3 {[%clk 0:00:33]}  g6 {[%clk 0:03:34]} 3. Bg2 {[%clk 0:00:33]}  Bg7 {[%clk 0:03:34]} 4. O-O {[%clk 0:00:33]}  O-O {[%clk 0:03:34]} 5. c4 {[%clk 0:00:33]}  d6 {[%clk 0:03:34]} 6. Nc3 {[%clk 0:00:33]}  e5 {[%clk 0:03:34]} 7. d3 {[%clk 0:00:33]}  c6 {[%clk 0:03:34]} 8. a3 {[%clk 0:00:33]}  Re8 {[%clk 0:03:34]} 9. Rb1 {[%clk 0:00:33]}  h6 {[%clk 0:03:34]} 10. Bd2 {[%clk 0:00:33]}  d5 {[%clk 0:03:34]} 11. cxd5 {[%clk 0:00:33]}  cxd5 {[%clk 0:03:34]} 12. d4 {[%clk 0:00:33]}  e4 {[%clk 0:03:34]} 13. Ne5 {[%clk 0:00:33]}  Nbd7 {[%clk 0:03:34]} 14. Nxd7 {[%clk 0:00:33]}  Bxd7 {[%clk 0:03:34]} 15. Qb3 {[%clk 0:00:33]}  Bc6 {[%clk 0:03:34]} 16. Rbc1 {[%clk 0:00:33]}  Qd7 {[%clk 0:03:34]} 17. a4 {[%clk 0:00:33]}  Nh5 {[%clk 0:03:34]} 18. e3 {[%clk 0:00:33]}  Nf6 {[%clk 0:03:34]} 19. Qa2 {[%clk 0:00:33]}  Bf8 {[%clk 0:03:34]} 20. f3 {[%clk 0:00:33]}  exf3 {[%clk 0:03:34]} 21. Rxf3 {[%clk 0:00:33]}  Ne4 {[%clk 0:03:34]} 22. Nxe4 {[%clk 0:00:33]}  dxe4 {[%clk 0:03:34]} 23. Rf4 {[%clk 0:00:33]}  Bd5 {[%clk 0:03:34]} 24. b3 {[%clk 0:00:33]}  Bd6 {[%clk 0:03:34]} 25. Rf6 {[%clk 0:00:33]}  Kg7 {[%clk 0:03:34]} 26. Rcf1 {[%clk 0:00:33]}  Rac8 {[%clk 0:03:34]} 27. Be1 {[%clk 0:00:33]}  h5 {[%clk 0:03:34]} 28. g4 {[%clk 0:00:33]}  hxg4 {[%clk 0:03:34]} 29. Bh4 {[%clk 0:00:33]}  Rh8 {[%clk 0:03:34]} 30. Qf2 {[%clk 0:00:33]}  Rxh4 {[%clk 0:03:34]} 31. Qxh4 {[%clk 0:00:33]}  Rh8 {[%clk 0:03:34]} 32. Rxg6+ {[%clk 0:00:33]}  fxg6 {[%clk 0:03:34]} 33. Qf6+ {[%clk 0:00:33]}  Kh7 {[%clk 0:03:34]} 34. Qg5 {[%clk 0:00:33]}  Be7 {[%clk 0:03:34]} 35. Qe5 {[%clk 0:00:33]}  Qd6 {[%clk 0:03:34]} 0-1


[Site "http://www.Chess.com"]

[Event "FIDE World Rapid Chess Championship 2021"]
[White "Aziz, Husain"]
[Black "Chigaev, Maksim"]
[WhiteFideId "12100293"]
[BlackFideId "4108116"]
[WhiteElo "2430"]
[BlackElo "2605"]
[Result "0-1"]
[Round "05"]
[TimeControl "900+10"]
[Date "2021.12.26"]
[WhiteClock "0:01:02"]
[BlackClock "0:00:29"]

1. e4 {[%clk 0:01:16]}  c5 {[%clk 0:02:31]} 2. Nf3 {[%clk 0:01:16]}  d6 {[%clk 0:02:31]} 3. Bb5+ {[%clk 0:01:16]}  Nd7 {[%clk 0:02:31]} 4. d4 {[%clk 0:01:16]}  cxd4 {[%clk 0:02:31]} 5. Qxd4 {[%clk 0:01:16]}  a6 {[%clk 0:02:31]} 6. Bxd7+ {[%clk 0:01:16]}  Bxd7 {[%clk 0:02:31]} 7. Nc3 {[%clk 0:01:16]}  h6 {[%clk 0:02:31]} 8. O-O {[%clk 0:01:16]}  Bc6 {[%clk 0:02:31]} 9. Rd1 {[%clk 0:01:16]}  Nf6 {[%clk 0:02:31]} 10. a4 {[%clk 0:01:16]}  e5 {[%clk 0:02:31]} 11. Qd3 {[%clk 0:01:16]}  Rc8 {[%clk 0:02:31]} 12. Nd2 {[%clk 0:01:16]}  d5 {[%clk 0:02:31]} 13. Qg3 {[%clk 0:01:16]}  Qc7 {[%clk 0:02:31]} 14. exd5 {[%clk 0:01:16]}  Nxd5 {[%clk 0:02:31]} 15. Nc4 {[%clk 0:01:16]}  Nxc3 {[%clk 0:02:31]} 16. bxc3 {[%clk 0:01:16]}  f6 {[%clk 0:02:31]} 17. Be3 {[%clk 0:01:16]}  Qf7 {[%clk 0:02:31]} 18. Nb6 {[%clk 0:01:16]}  Rb8 {[%clk 0:02:31]} 19. c4 {[%clk 0:01:16]}  Be7 {[%clk 0:02:31]} 20. Nd5 {[%clk 0:01:16]}  h5 {[%clk 0:02:31]} 21. Qh3 {[%clk 0:01:16]}  O-O {[%clk 0:02:31]} 22. Nxe7+ {[%clk 0:01:16]}  Qxe7 {[%clk 0:02:31]} 23. Qxh5 {[%clk 0:01:16]}  Qe6 {[%clk 0:02:31]} 24. Qe2 {[%clk 0:01:16]}  Rfd8 {[%clk 0:02:31]} 25. a5 {[%clk 0:01:16]}  Qf5 {[%clk 0:02:31]} 26. Bb6 {[%clk 0:01:16]}  Re8 {[%clk 0:02:31]} 27. Ra3 {[%clk 0:01:16]}  Kf7 {[%clk 0:02:31]} 28. h3 {[%clk 0:01:16]}  Rh8 {[%clk 0:02:31]} 29. Re3 {[%clk 0:01:16]}  Rbe8 {[%clk 0:02:31]} 30. Rg3 {[%clk 0:01:16]}  Rh4 {[%clk 0:02:31]} 31. Rd2 {[%clk 0:01:16]}  g5 {[%clk 0:02:31]} 32. Rd6 {[%clk 0:01:16]}  Qe4 {[%clk 0:01:36]} 33. Qd3 {[%clk 0:00:31]}  Reh8 {[%clk 0:01:36]} 34. Qxe4 {[%clk 0:00:31]}  Rxe4 {[%clk 0:01:36]} 35. Re3 {[%clk 0:00:31]}  Rxc4 {[%clk 0:01:36]} 36. c3 {[%clk 0:00:31]}  g4 {[%clk 0:01:36]} 37. Bd8 {[%clk 0:00:31]}  gxh3 {[%clk 0:01:36]} 38. Rxh3 {[%clk 0:00:31]}  Rxh3 {[%clk 0:01:36]} 39. gxh3 {[%clk 0:00:31]}  Rf4 {[%clk 0:01:36]} 40. h4 {[%clk 0:00:31]}  Rg4+ {[%clk 0:01:36]} 41. Kf1 {[%clk 0:00:31]}  Bb5+ {[%clk 0:00:29]} 42. Ke1 {[%clk 0:01:02]}  Re4+ {[%clk 0:00:29]} 43. Kd1 {[%clk 0:01:02]}  Rf4 {[%clk 0:00:29]} 44. Ke1 {[%clk 0:01:02]}  Kg6 {[%clk 0:00:29]} 45. h5+ {[%clk 0:01:02]}  Kxh5 {[%clk 0:00:29]} 46. Bxf6 {[%clk 0:01:02]}  Kg4 {[%clk 0:00:29]} 47. Rd5 {[%clk 0:01:02]}  Rxf6 {[%clk 0:00:29]} 0-1


[Site "http://www.Chess.com"]

[Event "FIDE World Rapid Chess Championship 2021"]
[White "Quparadze, Giga"]
[Black "Dziuba, Marcin"]
[WhiteFideId "13602250"]
[BlackFideId "1112953"]
[WhiteElo "2583"]
[BlackElo "2424"]
[Result "1-0"]
[Round "05"]
[TimeControl "900+10"]
[Date "2021.12.26"]
[WhiteClock "0:09:49"]
[BlackClock "0:02:37"]

1. e4 {[%clk 0:09:49]}  c5 {[%clk 0:02:37]} 2. Nf3 {[%clk 0:09:49]}  d6 {[%clk 0:02:37]} 3. d4 {[%clk 0:09:49]}  cxd4 {[%clk 0:02:37]} 4. Nxd4 {[%clk 0:09:49]}  Nf6 {[%clk 0:02:37]} 5. Nc3 {[%clk 0:09:49]}  Nc6 {[%clk 0:02:37]} 6. Nb3 {[%clk 0:09:49]}  g6 {[%clk 0:02:37]} 7. Be2 {[%clk 0:09:49]}  Bg7 {[%clk 0:02:37]} 8. O-O {[%clk 0:09:49]}  O-O {[%clk 0:02:37]} 9. Bg5 {[%clk 0:09:49]}  b6 {[%clk 0:02:37]} 10. f4 {[%clk 0:09:49]}  Bb7 {[%clk 0:02:37]} 11. Bf3 {[%clk 0:09:49]}  b5 {[%clk 0:02:37]} 12. Kh1 {[%clk 0:09:49]}  b4 {[%clk 0:02:37]} 13. Nd5 {[%clk 0:09:49]}  Nd7 {[%clk 0:02:37]} 14. e5 {[%clk 0:09:49]}  dxe5 {[%clk 0:02:37]} 15. Nxe7+ {[%clk 0:09:49]}  Nxe7 {[%clk 0:02:37]} 16. Bxb7 {[%clk 0:09:49]}  Rb8 {[%clk 0:02:37]} 17. Bc6 {[%clk 0:09:49]}  f6 {[%clk 0:02:37]} 18. Bxd7 {[%clk 0:09:49]}  fxg5 {[%clk 0:02:37]} 19. Be6+ {[%clk 0:09:49]}  Kh8 {[%clk 0:02:37]} 20. fxg5 {[%clk 0:09:49]}  Nf5 {[%clk 0:02:37]} 21. Bxf5 {[%clk 0:09:49]}  gxf5 {[%clk 0:02:37]} 22. Qh5 {[%clk 0:09:49]}  Qe8 {[%clk 0:02:37]} 23. Qh4 {[%clk 0:09:49]}  Rc8 {[%clk 0:02:37]} 24. Rf2 {[%clk 0:09:49]}  e4 {[%clk 0:02:37]} 25. Raf1 {[%clk 0:09:49]}  Qe5 {[%clk 0:02:37]} 26. Qh5 {[%clk 0:09:49]}  Qxb2 {[%clk 0:02:37]} 27. g6 {[%clk 0:09:49]}  h6 {[%clk 0:02:37]} 28. c4 {[%clk 0:09:49]}  Qc3 {[%clk 0:02:37]} 29. c5 {[%clk 0:09:49]}  f4 {[%clk 0:02:37]} 30. Qe2 {[%clk 0:09:49]}  Qe5 {[%clk 0:02:37]} 31. Qa6 {[%clk 0:09:49]}  Rf6 {[%clk 0:02:37]} 32. Qxc8+ {[%clk 0:09:49]} 1-0


[Site "http://www.Chess.com"]